fUSD/lending_fUSD_20250115
["ID","MTS","AMOUNT","RATE_DAILY","PERIOD"]
[349009467,1736934657754,-479.79,0.00016813,2]
[349009468,1736934657764,-700.0,0.00017,2]
[349009469,1736934657775,-201.18934239,0.00017092,2]
[349009470,1736934657784,-310.5,0.00017141,2]
[349009471,1736934657795,-151.0,0.00017325,2]
[349009472,1736934657805,-3000.0,0.000174,2]
[349009473,1736934657818,-201.18934239,0.00017573,2]
[349009474,1736934657828,-152.0,0.00017875,3]
[349009475,1736934657838,-1000.0,0.0001788,2]
[349009476,1736934657848,-1000.0,0.0001788,2]
[349009477,1736934657859,-1000.0,0.0001788,2]
[349009478,1736934657869,-1000.0,0.0001788,2]
[349009479,1736934657881,-1000.0,0.0001788,2]
[349009480,1736934657891,-1000.0,0.0001788,2]
[349009481,1736934657901,-1000.0,0.0001788,2]
[349009482,1736934657911,-1000.0,0.0001788,2]
[349009483,1736934657921,-1000.0,0.0001788,2]
[349009484,1736934657932,-1000.0,0.0001788,2]
[349009485,1736934657942,-215.05660689,0.0001791,20]
[349009486,1736934657951,-407.09596663,0.00017992,2]
[349009487,1736934657961,-16251.0,0.00018,4]
[349009488,1736934657971,-321.0,0.00018,5]
[349009489,1736934657981,-4005.0,0.00018,2]
[349009490,1736934657990,-201.18934239,0.00018054,2]
[349009491,1736934658000,-2000.0,0.00018082,2]
[349009492,1736934658010,-5000.0,0.000181,3]
[349009493,1736934658020,-152.0,0.00018476,4]
[349009494,1736934658029,-321.0,0.000185,6]
[349009495,1736934658038,-201.18934239,0.00018535,2]
[349009496,1736934658048,-3052.55,0.000187,7]
[349009497,1736934658057,-2000.0,0.00018751,2]
[349009498,1736934658071,-4025.64535748,0.00018755,2]
[349009499,1736934658082,-4025.64535739,0.00018755,2]
[349009500,1736934658091,-5000.0,0.000189,2]
[349009501,1736934658101,-500.0,0.00018904,2]
[349009502,1736934658112,-500.0,0.00018999,2]
[349009503,1736934658122,-500.0,0.00018999,2]
[349009504,1736934658132,-500.0,0.00018999,2]
[349009505,1736934658142,-235.75,0.00018999,2]
[349009506,1736934658152,-500.0,0.00018999,2]
[349009507,1736934658162,-500.0,0.00018999,2]
[349009508,1736934658172,-500.0,0.00018999,2]
[349009509,1736934658183,-500.0,0.00018999,2]
[349009510,1736934658192,-500.0,0.00018999,2]
[349009511,1736934658202,-500.0,0.00018999,2]
[349009512,1736934658211,-576.87,0.00018999,2]
[349009513,1736934658221,-500.0,0.00018999,2]
[349009514,1736934658231,-502.1376746,0.00018999,2]
[349009515,1736934658240,-500.0,0.00018999,2]
[349009516,1736934658250,-500.0,0.00018999,2]
[349009517,1736934658260,-500.0,0.00018999,2]
[349009518,1736934658270,-500.0,0.00018999,2]
[349009519,1736934658280,-500.0,0.00018999,2]
[349009520,1736934658290,-500.0,0.00018999,2]
[349009521,1736934658300,-500.0,0.00018999,2]
[349009522,1736934658310,-500.0,0.00018999,2]
[349009523,1736934658322,-500.0,0.00018999,2]
[349009524,1736934658333,-500.0,0.00018999,2]
[349009525,1736934658343,-500.0,0.00018999,2]
[349009526,1736934658354,-507.16,0.00018999,2]
[349009527,1736934658364,-500.0,0.00018999,2]
[349009528,1736934658374,-500.0,0.00018999,2]
[349009529,1736934658385,-500.0,0.00018999,2]
[349009530,1736934658395,-500.0,0.00018999,2]
[349009531,1736934658406,-500.0,0.00018999,2]
[349009532,1736934658417,-500.0,0.00018999,2]
[349009533,1736934658427,-500.0,0.00018999,2]
[349009534,1736934658438,-500.0,0.00018999,2]
[349009535,1736934658448,-1000.0,0.00018999,2]
[349009536,1736934658459,-500.0,0.00018999,2]
[349009537,1736934658469,-500.0,0.00018999,2]
[349009538,1736934658479,-500.0,0.00018999,2]
[349009539,1736934658490,-500.0,0.00018999,2]
[349009540,1736934658501,-89626.0,0.00019,2]
[349009541,1736934658512,-750.0,0.00019,2]
[349009542,1736934658521,-321.0,0.00019,6]
[349009543,1736934658531,-201.18934239,0.00019015,2]
[349009544,1736934658541,-2500.0,0.00019064,2]
[349009545,1736934658552,-152.0,0.00019076,5]
[349009546,1736934658564,-1250.0,0.00019084,2]
[349009547,1736934658574,-150.0,0.00019178,2]
[349009548,1736934658584,-2500.0,0.00019209,2]
[349009549,1736934658595,-12500.0,0.00019251,2]
[349009550,1736934658605,-500.0,0.00019273,2]
[349009551,1736934658615,-500.0,0.00019273,2]
[349009552,1736934658626,-500.0,0.00019273,2]
[349009553,1736934658637,-500.0,0.00019273,2]
[349009554,1736934658647,-328.56908566,0.00019273,2]
[349009555,1736934658657,-500.0,0.00019273,2]
[349009556,1736934658667,-500.0,0.00019273,2]
[349009557,1736934658676,-500.0,0.00019273,2]
[349009558,1736934658687,-500.0,0.00019273,2]
[349009559,1736934658696,-576.87,0.00019273,2]
[349009560,1736934658706,-500.0,0.00019273,2]
[349009561,1736934658715,-500.0,0.00019273,2]
[349009562,1736934658726,-500.0,0.00019273,2]
[349009563,1736934658735,-500.0,0.00019273,2]
[349009564,1736934658745,-500.0,0.00019273,2]
[349009565,1736934658755,-500.0,0.00019273,2]
[349009566,1736934658765,-500.0,0.00019273,2]
[349009567,1736934658776,-500.0,0.00019273,2]
[349009568,1736934658786,-500.0,0.00019273,2]
[349009569,1736934658797,-500.0,0.00019273,2]
[349009570,1736934658807,-500.0,0.00019273,2]
[349009571,1736934658818,-500.0,0.00019273,2]
[349009572,1736934658828,-507.16,0.00019273,2]
[349009573,1736934658839,-500.0,0.00019273,2]
[349009574,1736934658850,-500.0,0.00019273,2]
[349009575,1736934658860,-500.0,0.00019273,2]
[349009576,1736934658871,-500.0,0.00019273,2]
[349009577,1736934658881,-500.0,0.00019273,2]
[349009578,1736934658891,-500.0,0.00019273,2]
[349009579,1736934658902,-500.0,0.00019273,2]
[349009580,1736934658913,-500.0,0.00019273,2]
[349009581,1736934658923,-1000.0,0.00019273,2]
[349009582,1736934658934,-500.0,0.00019273,2]
[349009583,1736934658944,-500.0,0.00019273,2]
[349009584,1736934658955,-500.0,0.00019273,2]
[349009585,1736934658964,-500.0,0.00019273,2]
[349009586,1736934658975,-29999.99,0.00019339,2]
[349009587,1736934658984,-500.0,0.00019344,2]
[349009588,1736934658994,-310.5,0.00019372,2]
[349009589,1736934659005,-9903.87915393,0.000194,7]
[349009590,1736934659015,-164.51056752,0.000194,2]
[349009591,1736934659026,-160.6590571,0.000194,2]
[349009592,1736934659035,-212.41610955,0.000194,2]
[349009593,1736934659045,-2000.0,0.0001942,2]
[349009594,1736934659055,-150.0,0.00019439,2]
[349009595,1736934659066,-712.65020027,0.0001949,2]
[349009596,1736934659075,-201.18934239,0.00019496,2]
[349009597,1736934659085,-2500.0,0.00019497,2]
[349009598,1736934659095,-11018.20550534,0.00019497,5]
[349009599,1736934659105,-999.0,0.00019499,2]
[349009600,1736934659115,-35655.93363004,0.00019499,7]
[349009601,1736934659124,-2970893.4096837,0.000195,2]
[349009602,1736934659133,-151.0,0.000195,2]
[349009603,1736934659143,-301.266657,0.000195,2]
[349009604,1736934659153,-3000.0,0.000195,2]
[349009605,1736934659163,-474.032724,0.000195,7]
[349009606,1736934659173,-278.031401,0.000195,2]
[349009607,1736934659184,-151.0,0.000195,2]
[349009608,1736934659194,-151.0,0.000195,2]
[349009609,1736934659204,-170.220864,0.000195,2]
[349009610,1736934659214,-151.0,0.000195,2]
[349009611,1736934659223,-823.870216,0.000195,2]
[349009612,1736934659234,-823.870216,0.000195,2]
[349009613,1736934659244,-151.0,0.000195,2]
[349009614,1736934659253,-4835.81,0.000195,2]
[349009615,1736934659263,-150.0,0.00019501,2]
[349009616,1736934659273,-2543.11,0.00019519,2]
[349009617,1736934659283,-160.65905708,0.00019528,2]
[349009618,1736934659293,-12500.0,0.00019538,2]
[349009619,1736934659302,-500.0,0.00019547,2]
[349009620,1736934659313,-500.0,0.00019547,2]
[349009621,1736934659324,-500.0,0.00019547,2]
[349009622,1736934659335,-500.0,0.00019547,2]
[349009623,1736934659344,-500.0,0.00019547,2]
[349009624,1736934659353,-500.0,0.00019547,2]
[349009625,1736934659363,-500.0,0.00019547,2]
[349009626,1736934659373,-576.87,0.00019547,2]
[349009627,1736934659383,-500.0,0.00019547,2]
[349009628,1736934659392,-500.0,0.00019547,2]
[349009629,1736934659401,-500.0,0.00019547,2]
[349009630,1736934659411,-500.0,0.00019547,2]
[349009631,1736934659421,-500.0,0.00019547,2]
[349009632,1736934659431,-256.82,0.00019547,2]
[349009633,1736934659440,-604.86,0.00019547,2]
[349009634,1736934659450,-373.08,0.00019547,2]
[349009635,1736934659460,-500.0,0.00019547,2]
[349009636,1736934659471,-500.0,0.00019547,2]
[349009637,1736934659481,-500.0,0.00019547,2]
[349009638,1736934659490,-500.0,0.00019547,2]
[349009639,1736934659500,-507.16,0.00019547,2]
[349009640,1736934659510,-500.0,0.00019547,2]
[349009641,1736934659519,-500.0,0.00019547,2]
[349009642,1736934659530,-500.0,0.00019547,2]
[349009643,1736934659539,-500.0,0.00019547,2]
[349009644,1736934659548,-500.0,0.00019547,2]
[349009645,1736934659557,-500.0,0.00019547,2]
[349009646,1736934659569,-500.0,0.00019547,2]
[349009647,1736934659579,-500.0,0.00019547,2]
[349009648,1736934659588,-1000.0,0.00019547,2]
[349009649,1736934659599,-500.0,0.00019547,2]
[349009650,1736934659609,-500.0,0.00019547,2]
[349009651,1736934659620,-500.0,0.00019547,2]
[349009652,1736934659630,-500.0,0.00019547,2]
[349009653,1736934659640,-85390.0,0.0001955,5]
[349009654,1736934659650,-676.29,0.00019567,2]
[349009655,1736934659660,-4690.33,0.00019596,2]
[349009656,1736934659670,-1000.0,0.000196,2]
[349009657,1736934659680,-10000.0,0.000196,3]
[349009658,1736934659691,-93811.88085375,0.000196,2]
[349009659,1736934659703,-500.0,0.0001961,2]
[349009660,1736934659712,-407.09596663,0.0001961,2]
[349009661,1736934659722,-1425.0,0.0001963,14]
[349009662,1736934659732,-1289.60921169,0.0001965,2]
[349009663,1736934659743,-165.87053087,0.00019655,2]
[349009664,1736934659753,-165.87053087,0.00019655,2]
[349009665,1736934659763,-165.87,0.00019655,2]
[349009666,1736934659775,-177.40811359,0.00019655,2]
[349009667,1736934659786,-177.40811359,0.00019655,2]
[349009668,1736934659796,-177.40811359,0.00019655,2]
[349009669,1736934659806,-177.40811359,0.00019655,2]
[349009670,1736934659818,-177.40811359,0.00019655,2]
[349009671,1736934659827,-177.40811359,0.00019655,2]
[349009672,1736934659882,-177.40811359,0.00019655,2]
[349009673,1736934659892,-177.40811359,0.00019655,2]
[349009674,1736934659901,-177.40811359,0.00019655,2]
[349009675,1736934659912,-177.40811359,0.00019655,2]
[349009676,1736934659922,-177.40811359,0.00019655,2]
[349009677,1736934659932,-177.40811359,0.00019655,2]
[349009678,1736934659942,-177.40811359,0.00019655,2]
[349009679,1736934659952,-177.40811359,0.00019655,2]
[349009680,1736934659961,-177.40811359,0.00019655,2]
[349009681,1736934659971,-177.40811359,0.00019655,2]
[349009682,1736934659981,-177.40811359,0.00019655,2]
[349009683,1736934659991,-177.40811359,0.00019655,2]
[349009684,1736934660001,-177.40811359,0.00019655,2]
[349009685,1736934660010,-177.4,0.00019655,2]
[349009686,1736934660020,-679.57369804,0.00019655,3]
[349009687,1736934660030,-160.65905708,0.00019655,2]
[349009688,1736934660040,-150.0,0.00019665,2]
[349009689,1736934660050,-2503.45,0.00019665,2]
[349009690,1736934660060,-2081.0,0.00019672,2]
[349009691,1736934660072,-2501.16,0.00019675,2]
[349009692,1736934660082,-152.0,0.00019677,6]
[349009693,1736934660091,-150.0,0.00019683,2]
[349009694,1736934660101,-5000.0,0.00019684,2]
[349009695,1736934660110,-7029.0223974,0.000197,14]
[349009696,1736934660119,-1000.0,0.000197,2]
[349009697,1736934660129,-1058.0,0.0001972,2]
[349009698,1736934660139,-712.65020027,0.00019745,2]
[349009699,1736934660148,-75000.0,0.0001975,10]
[349009700,1736934660158,-24765.16836256,0.00019755,2]
[349009701,1736934660168,-5000.0,0.00019755,120]
[349009702,1736934660177,-30076.39720131,0.00019755,5]
[349009703,1736934660187,-18641.27558981,0.00019755,5]
[349009704,1736934660197,-13112.9985214,0.00019755,5]
[349009705,1736934660206,-11627.39429707,0.00019755,5]
[349009706,1736934660216,-1000.0,0.00019755,30]
[349009707,1736934660226,-634.56197168,0.00019755,120]
[349009708,1736934660235,-7777.89483733,0.00019755,7]
[349009709,1736934660244,-96580.51968729,0.00019755,10]
[349009710,1736934660253,-20536.29348944,0.00019755,7]
[349009711,1736934660263,-4862.36605229,0.00019755,30]
[349009712,1736934660272,-5294.69967671,0.00019755,30]
[349009713,1736934660282,-10530.89790247,0.00019755,15]
[349009714,1736934660291,-4374.15085471,0.00019755,30]
[349009715,1736934660300,-7152.23132245,0.00019755,7]
[349009716,1736934660309,-3036.60532988,0.00019755,30]
[349009717,1736934660320,-181861.03978884,0.00019755,7]
[349009718,1736934660329,-4839.05167728,0.00019755,30]
[349009719,1736934660339,-4769.52855299,0.00019755,10]
[349009720,1736934660348,-5347.83513486,0.00019755,30]
[349009721,1736934660358,-2656.48304579,0.00019755,30]
[349009722,1736934660367,-24393.272,0.00019755,14]
[349009723,1736934660377,-3925.14434438,0.00019755,30]
[349009724,1736934660387,-10009.00571607,0.00019755,10]
[349009725,1736934660397,-3551.72820797,0.00019755,30]
[349009726,1736934660406,-3134.16109909,0.00019755,30]
[349009727,1736934660416,-5271.290437,0.00019755,30]
[349009728,1736934660425,-2383.49586473,0.00019755,30]
[349009729,1736934660435,-2732.84969974,0.00019755,30]
[349009730,1736934660443,-2341.05163588,0.00019755,30]
[349009731,1736934660453,-4054.46659387,0.00019755,30]
[349009732,1736934660462,-4127.19222366,0.00019755,30]
[349009733,1736934660472,-12703.93799826,0.00019755,30]
[349009734,1736934660481,-3575.40944039,0.00019755,30]
[349009735,1736934660490,-3500.0,0.00019755,30]
[349009736,1736934660499,-2500.0,0.00019755,30]
[349009737,1736934660508,-3000.0,0.00019755,30]
[349009738,1736934660518,-2990.70013641,0.00019755,15]
[349009739,1736934660527,-5000.0,0.00019755,30]
[349009740,1736934660537,-154.73406503,0.00019755,60]
[349009741,1736934660546,-3328.0,0.00019755,30]
[349009742,1736934660555,-547.45970845,0.00019755,120]
[349009743,1736934660567,-157.44592863,0.00019755,60]
[349009744,1736934660576,-905.08188076,0.00019755,3]
[349009745,1736934660586,-150.30755298,0.00019755,30]
[349009746,1736934660595,-7494.0,0.00019755,10]
[349009747,1736934660605,-5000.80954096,0.00019755,2]
[349009748,1736934660615,-40000.0,0.00019755,10]
[349009749,1736934660625,-8000.4219177,0.00019755,2]
[349009750,1736934660634,-203.75365554,0.00019755,2]
[349009751,1736934660643,-4014.25670121,0.00019755,120]
[349009752,1736934660653,-227.04093435,0.00019755,2]
[349009753,1736934660662,-957.53,0.00019755,90]
[349009754,1736934660672,-2000.0,0.00019755,2]
[349009755,1736934660682,-4512.57702239,0.00019755,120]
[349009756,1736934660692,-981.178216,0.00019755,120]
[349009757,1736934660705,-158.11986364,0.00019755,30]
[349009758,1736934660715,-156.67623239,0.00019755,30]
[349009759,1736934660724,-518.62949688,0.00019755,120]
[349009760,1736934660734,-601.87052386,0.00019755,30]
[349009761,1736934660744,-1058.0,0.00019755,5]
[349009762,1736934660753,-1058.0,0.00019755,5]
[349009763,1736934660762,-1058.0,0.00019755,5]
[349009764,1736934660772,-1058.0,0.00019755,5]
[349009765,1736934660781,-1058.0,0.00019755,5]
[349009766,1736934660791,-1058.0,0.00019755,5]
[349009767,1736934660800,-1665.61361894,0.00019755,2]
[349009768,1736934660809,-2575.5903132,0.00019755,30]
[349009769,1736934660821,-5636.25411489,0.00019755,120]
[349009770,1736934660829,-2525.16789097,0.00019755,120]
[349009771,1736934660839,-3712380.72138516,0.00019755,30]
[349009772,1736934661009,-13318.76281526,0.00019755,30]
[349009773,1736934661021,-902.63081299,0.00019755,30]
[349009774,1736934661033,-11965.53273149,0.00019755,30]
[349009775,1736934661044,-652.8944848,0.00019755,30]
[349009776,1736934661056,-1620.81591875,0.00019755,30]
[349009777,1736934661085,-13749.21415508,0.00019755,30]
[349009778,1736934661138,-625.44,9.998e-05,2]
[349009779,1736934661148,-500.0,0.0001219,2]
[349009780,1736934661158,-293.92,0.00012464,2]
[349009781,1736934661168,-312.8,0.00012738,2]
[349009782,1736934661177,-4941.80904916,0.00019755,30]
[349009783,1736934661189,-193129.40211064,0.00019755,30]
[349009784,1736934661201,-156903.5163519,0.00019755,30]
[349009785,1736934661284,-6796.67493044,0.00019755,30]
[349009786,1736934661296,-272.8058892,0.00019755,30]
[349009787,1736934661308,-1049.41419005,0.00019755,30]
[349009788,1736934661323,-1685.77121904,0.00019755,30]
[349009789,1736934661335,-1007.52312096,0.00019755,30]
[349009790,1736934661347,-2792.33549505,0.00019755,30]
[349009791,1736934661359,-4919.72166071,0.00019755,30]
[349009792,1736934661454,-500.0,9.997e-05,2]
[349009793,1736934661463,-512.30197179,9.998e-05,2]
[349009794,1736934661473,-625.44,0.00010272,2]
[349009795,1736934661483,-625.44,0.00010546,2]
[349009796,1736934661492,-1164.73250519,0.00019755,30]
[349009797,1736934661503,-9394.37782381,0.00019755,30]
[349009798,1736934661516,-3080.05448106,0.00019755,30]
[349009799,1736934661536,-625.44,0.0001082,2]
[349009800,1736934661547,-2.771996,0.00019755,30]
[349009801,1736934661559,-37079.6228439,0.00019755,30]
[349009802,1736934661573,-9000.0,0.00019755,30]
[349009803,1736934661585,-693.41331299,0.00019755,30]
[349009804,1736934661597,-70263.39999603,0.00019755,30]
[349009805,1736934661608,-14208.67603151,0.00019755,30]
[349009806,1736934661619,-500.0,0.00019755,30]
[349009807,1736934661631,-1302.1840501,0.00019755,30]
[349009808,1736934661801,-500.0,9.997e-05,2]
[349009809,1736934661811,-340.72193795,9.998e-05,2]
[349009810,1736934661825,-159.27806205,9.998e-05,2]
[349009811,1736934661835,-500.0,0.00010271,2]
[349009812,1736934661846,-428.87,0.00010271,2]
[349009813,1736934661856,-500.0,0.00010545,2]
[349009814,1736934661866,-625.44,0.00011094,2]
[349009815,1736934661876,-625.44,0.00011368,2]
[349009816,1736934661887,-186762.28129547,0.00019755,30]
[349009817,1736934661926,-4988.75196345,0.00019755,30]
[349009818,1736934661938,-367.681297,0.00019755,30]
[349009819,1736934661950,-2111.62499604,0.00019755,30]
[349009820,1736934661974,-500.0,0.00010819,2]
[349009821,1736934661984,-136457.424645,0.00019755,30]
[349009822,1736934661996,-521.3235615,0.00019755,30]
[349009823,1736934662009,-284.212212,0.00019755,30]
[349009824,1736934662021,-2814.52542,0.00019755,30]
[349009825,1736934662062,-267.74368404,0.00019755,30]
[349009826,1736934793502,2000.0,0.00023,120]
[349009828,1736935391801,2000.0,0.00023,120]
[349010043,1736935695628,-800.0,9.289e-05,2]
[349010044,1736935726337,372.42,8.219e-05,2]
[349010068,1736935831785,-6294.28800005,9.289e-05,2]
[349010069,1736935831809,-1140.71199995,9.289e-05,2]
[349010070,1736935831819,-321.92,9.581e-05,2]
[349010071,1736935831828,-178.41228471,9.625e-05,2]
[349010072,1736935831847,-1674.00771529,9.625e-05,2]
[349010073,1736935831856,-200.0,9.704e-05,2]
[349010074,1736935831867,-250.0,9.784e-05,2]
[349010075,1736935831876,-181.408,9.898e-05,2]
[349010076,1736935831886,-246.82,9.932e-05,2]
[349010077,1736935831895,-150.0,9.996e-05,2]
[349010078,1736935831905,-500.0,9.997e-05,2]
[349010079,1736935831914,-500.0,9.997e-05,2]
[349010080,1736935831924,-500.0,9.997e-05,2]
[349010081,1736935831933,-188.95369647,9.997e-05,2]
[349010082,1736935831945,-311.04630353,9.997e-05,2]
[349010083,1736935831955,-412.82348186,9.997e-05,2]
[349010084,1736935831966,-500.0,9.997e-05,2]
[349010085,1736935831976,-500.0,9.997e-05,2]
[349010086,1736935831986,-151.002436,9.997e-05,2]
[349010087,1736935831995,-500.0,9.997e-05,2]
[349010088,1736935832005,-500.0,9.997e-05,2]
[349010089,1736935832015,-150.817924,9.997e-05,2]
[349010090,1736935832026,-173.594065,9.997e-05,2]
[349010091,1736935832036,-161.87640779,9.997e-05,2]
[349010092,1736935836356,-584.67,9.913e-05,2]
[349010093,1736935836366,-338.12359221,9.997e-05,2]
[349010094,1736935836375,-163.74258,9.997e-05,2]
[349010095,1736935836385,-199.8870384,9.997e-05,2]
[349010096,1736935836394,-302.61,9.997e-05,2]
[349010097,1736935836403,-500.0,9.997e-05,2]
[349010098,1736935836413,-151.002436,9.997e-05,2]
[349010099,1736935836422,-150.817922,9.997e-05,2]
[349010100,1736935836431,-500.0,9.997e-05,2]
[349010101,1736935836441,-500.0,9.997e-05,2]
[349010102,1736935836452,-500.0,9.997e-05,2]
[349010103,1736935836462,-94.44444705,9.997e-05,2]
[349010104,1736935836474,-405.55555295,9.997e-05,2]
[349010105,1736935836484,-151.002435,9.997e-05,2]
[349010106,1736935836493,-150.817922,9.997e-05,2]
[349010107,1736935836502,-500.0,9.997e-05,2]
[349010108,1736935836511,-151.002435,9.997e-05,2]
[349010109,1736935836524,-500.0,9.997e-05,2]
[349010110,1736935836537,-500.0,9.997e-05,2]
[349010111,1736935836546,-500.0,9.997e-05,2]
[349010112,1736935836556,-191.5062038,9.997e-05,2]
[349010113,1736935836568,-761.7837962,9.997e-05,2]
[349010115,1736935836577,-500.0,9.997e-05,2]
[349010117,1736935836587,-150.817923,9.997e-05,2]
[349010119,1736935836596,-500.0,9.997e-05,2]
[349010120,1736935836605,-500.0,9.997e-05,2]
[349010123,1736935836616,-500.0,9.997e-05,2]
[349010124,1736935836625,-672.64,9.997e-05,2]
[349010126,1736935836635,-159.97314072,9.997e-05,2]
[349010129,1736935836653,-340.02685928,9.997e-05,2]
[349010131,1736935836662,-138.28902458,9.997e-05,2]
[349010134,1736935836673,-361.71097542,9.997e-05,2]
[349010136,1736935836683,-500.0,9.997e-05,2]
[349010138,1736935836691,-39.20647846,9.997e-05,2]
[349010140,1736935836705,-460.79352154,9.997e-05,2]
[349010142,1736935836714,-151.002435,9.997e-05,2]
[349010144,1736935836724,-500.0,9.997e-05,2]
[349010146,1736935836733,-500.0,9.997e-05,2]
[349010148,1736935836742,-500.0,9.997e-05,2]
[349010150,1736935836752,-150.817922,9.997e-05,2]
[349010152,1736935836761,-241.52,9.997e-05,2]
[349010154,1736935836771,-500.0,9.997e-05,2]
[349010156,1736935836782,-500.0,9.997e-05,2]
[349010158,1736935836791,-500.0,9.997e-05,2]
[349010160,1736935836800,-500.0,9.997e-05,2]
[349010162,1736935836809,-500.0,9.997e-05,2]
[349010164,1736935836819,-500.0,9.997e-05,2]
[349010166,1736935836828,-97.86612146,9.997e-05,2]
[349010168,1736935836839,-53.13631354,9.997e-05,2]
[349010170,1736935836849,-226.86368646,9.997e-05,2]
[349010172,1736935836861,-273.13631354,9.997e-05,2]
[349010175,1736935836871,-475.26463536,9.997e-05,2]
[349010177,1736935836880,-149.1256851,9.997e-05,2]
[349010179,1736935836892,-350.8743149,9.997e-05,2]
[349010181,1736935836902,-150.817922,9.997e-05,2]
[349010183,1736935836911,-500.0,9.997e-05,2]
[349010185,1736935836920,-968.24,9.997e-05,2]
[349010187,1736935836930,-287.10745226,9.997e-05,2]
[349010189,1736935836942,-212.89254774,9.997e-05,2]
[349010191,1736935836951,-337.10745226,9.997e-05,2]
[349010272,1736935837681,-162.89254774,9.997e-05,2]
[349010275,1736935837690,-399.58886173,9.997e-05,2]
[349010277,1736935837702,-100.41113827,9.997e-05,2]
[349010279,1736935837711,-500.0,9.997e-05,2]
[349010281,1736935837720,-500.0,9.997e-05,2]
[349010283,1736935837730,-500.0,9.997e-05,2]
[349010285,1736935837742,-151.002435,9.997e-05,2]
[349010286,1736935837752,-500.0,9.997e-05,2]
[349010288,1736935837761,-3.46795126,9.997e-05,2]
[349010291,1736935837780,-496.53204874,9.997e-05,2]
[349010293,1736935837789,-150.817922,9.997e-05,2]
[349010295,1736935837799,-151.002436,9.997e-05,2]
[349010297,1736935837808,-150.817922,9.997e-05,2]
[349010299,1736935837818,-500.0,9.997e-05,2]
[349010301,1736935837827,-546.21,9.997e-05,2]
[349010303,1736935837836,-500.0,9.997e-05,2]
[349010305,1736935837846,-150.817923,9.997e-05,2]
[349010307,1736935837855,-151.002435,9.997e-05,2]
[349010309,1736935837864,-500.0,9.997e-05,2]
[349010311,1736935837873,-500.0,9.997e-05,2]
[349010313,1736935837882,-500.0,9.997e-05,2]
[349010315,1736935837891,-612.35,9.997e-05,2]
[349010317,1736935837901,-780.28,9.997e-05,2]
[349010319,1736935837910,-1684.71,9.997e-05,2]
[349010321,1736935837919,-835.58,9.997e-05,2]
[349010323,1736935837928,-943.58,9.997e-05,2]
[349010325,1736935837937,-500.0,9.997e-05,2]
[349010327,1736935837946,-500.0,9.997e-05,2]
[349010329,1736935837955,-534.4,9.997e-05,2]
[349010331,1736935837965,-939.41,9.997e-05,2]
[349010333,1736935837975,-524.84,9.997e-05,2]
[349010335,1736935837984,-500.75263181,9.998e-05,2]
[349010337,1736935837994,-500.0,9.998e-05,2]
[349010339,1736935838003,-500.31861544,9.998e-05,2]
[349010341,1736935838012,-209.49403256,9.998e-05,2]
[349010343,1736935838021,-500.0,9.998e-05,2]
[349010345,1736935838031,-500.9772404,9.998e-05,2]
[349010347,1736935838041,-500.96804778,9.998e-05,2]
[349010349,1736935838050,-503.95339738,9.998e-05,2]
[349010351,1736935838059,-501.66983493,9.998e-05,2]
[349010352,1736935838068,-502.49095638,9.998e-05,2]
[349010354,1736935838078,-500.65315437,9.998e-05,2]
[349010356,1736935838087,-501.8290628,9.998e-05,2]
[349010358,1736935838096,-500.0,9.998e-05,2]
[349010360,1736935838105,-387.2463852,9.998e-05,2]
[349010362,1736935838115,-205.88,9.998e-05,2]
[349010364,1736935838127,-411.10880029,9.998e-05,2]
[349010366,1736935838136,-500.0,9.998e-05,2]
[349010368,1736935838145,-500.0,9.998e-05,2]
[349010370,1736935838154,-502.27977132,9.998e-05,2]
[349010372,1736935838164,-500.0,9.998e-05,2]
[349010374,1736935838173,-500.0,9.998e-05,2]
[349010376,1736935838183,-162.75382408,9.998e-05,2]